[Event "Early-Titled-Tuesday-Blitz-January-16-2024"]
[Site "Chess.com"]
[Date "2024.01.16"]
[Round "3"]
[White "stollenmonster"]
[Black "TheNextLevelFan"]
[Result "1-0"]
[WhiteElo "2903"]
[BlackElo "2600"]
[TimeControl "180+1"]
[EndTime "8:30:07 PST"]
[Termination "stollenmonster won by checkmate"]

1. e4 {[%clk 0:03:00.9]} 1... c6 {[%clk 0:02:59.7]} 2. d4 {[%clk 0:03:00.4]}
2... d5 {[%clk 0:03:00.4]} 3. e5 {[%clk 0:03:00.8]} 3... g6 {[%clk 0:02:59.6]}
4. c4 {[%clk 0:03:00.2]} 4... Bg7 {[%clk 0:02:58.7]} 5. Nc3 {[%clk 0:02:59.6]}
5... Nh6 {[%clk 0:02:58.2]} 6. Nf3 {[%clk 0:02:56.6]} 6... O-O {[%clk
0:02:56.1]} 7. Bd3 {[%clk 0:02:43.5]} 7... f6 {[%clk 0:02:52.5]} 8. h3 {[%clk
0:02:35.9]} 8... Bf5 {[%clk 0:02:36.1]} 9. Bxh6 {[%clk 0:02:34.1]} 9... Bxh6
{[%clk 0:02:32.4]} 10. Bxf5 {[%clk 0:02:33]} 10... gxf5 {[%clk 0:02:32.8]} 11.
cxd5 {[%clk 0:02:20.9]} 11... cxd5 {[%clk 0:02:30.2]} 12. e6 {[%clk 0:02:20.8]}
12... Qd6 {[%clk 0:02:24.8]} 13. Qe2 {[%clk 0:02:20.7]} 13... Nc6 {[%clk
0:02:20.5]} 14. O-O {[%clk 0:02:20.6]} 14... Kh8 {[%clk 0:02:12.2]} 15. Rad1
{[%clk 0:01:40.1]} 15... Rg8 {[%clk 0:02:11.2]} 16. Kh1 {[%clk 0:01:32.9]} 16...
Rad8 {[%clk 0:02:06.6]} 17. g3 {[%clk 0:01:26.8]} 17... a6 {[%clk 0:01:58.7]}
18. Nh4 {[%clk 0:01:22.2]} 18... Rg5 {[%clk 0:01:32.8]} 19. f4 {[%clk
0:01:20.2]} 19... Rg6 {[%clk 0:00:58.7]} 20. Nxf5 {[%clk 0:01:04.1]} 20... Qc7
{[%clk 0:00:52.4]} 21. Rd3 {[%clk 0:00:47.3]} 21... Qb6 {[%clk 0:00:40.5]} 22.
Qh5 {[%clk 0:00:39.7]} 22... Bf8 {[%clk 0:00:39.9]} 23. Rf2 {[%clk 0:00:38]}
23... Nb4 {[%clk 0:00:39.8]} 24. Re3 {[%clk 0:00:32.8]} 24... Rc8 {[%clk
0:00:39.1]} 25. a3 {[%clk 0:00:27.2]} 25... Nc6 {[%clk 0:00:39]} 26. Nxd5 {[%clk
0:00:22.8]} 26... Qb5 {[%clk 0:00:39.6]} 27. Nc3 {[%clk 0:00:23.1]} 27... Qc4
{[%clk 0:00:37.3]} 28. Qe2 {[%clk 0:00:23.1]} 28... Nxd4 {[%clk 0:00:36.4]} 29.
Qxc4 {[%clk 0:00:22.6]} 29... Rxc4 {[%clk 0:00:37.3]} 30. Nxd4 {[%clk
0:00:20.6]} 30... Rxd4 {[%clk 0:00:37.4]} 31. Kg2 {[%clk 0:00:20.7]} 31... f5
{[%clk 0:00:36.1]} 32. Ref3 {[%clk 0:00:19.1]} 32... Rxe6 {[%clk 0:00:35.2]} 33.
g4 {[%clk 0:00:15.8]} 33... fxg4 {[%clk 0:00:34.5]} 34. hxg4 {[%clk 0:00:16.7]}
34... Bg7 {[%clk 0:00:34.3]} 35. Kg3 {[%clk 0:00:16.1]} 35... Red6 {[%clk
0:00:33.3]} 36. Re2 {[%clk 0:00:15.4]} 36... Rd7 {[%clk 0:00:30.9]} 37. Ne4
{[%clk 0:00:15.5]} 37... Rd3 {[%clk 0:00:27.1]} 38. Nc5 {[%clk 0:00:15.6]} 38...
Rxf3+ {[%clk 0:00:26.7]} 39. Kxf3 {[%clk 0:00:16.5]} 39... Rc7 {[%clk
0:00:27.2]} 40. Ne6 {[%clk 0:00:14.8]} 40... Rd7 {[%clk 0:00:27.6]} 41. Nc5
{[%clk 0:00:13.9]} 41... Rc7 {[%clk 0:00:27.7]} 42. b4 {[%clk 0:00:14.6]} 42...
Kg8 {[%clk 0:00:25.8]} 43. g5 {[%clk 0:00:14.1]} 43... Kf7 {[%clk 0:00:26.1]}
44. Kg4 {[%clk 0:00:14.1]} 44... a5 {[%clk 0:00:24.1]} 45. Re4 {[%clk
0:00:13.1]} 45... axb4 {[%clk 0:00:23.4]} 46. axb4 {[%clk 0:00:14]} 46... Bc3
{[%clk 0:00:22.8]} 47. Ne6 {[%clk 0:00:12.2]} 47... Rd7 {[%clk 0:00:22.2]} 48.
b5 {[%clk 0:00:11.4]} 48... Bb4 {[%clk 0:00:19.2]} 49. f5 {[%clk 0:00:10.2]}
49... Ba3 {[%clk 0:00:19]} 50. Kh5 {[%clk 0:00:10.4]} 50... Bc1 {[%clk
0:00:16.7]} 51. g6+ {[%clk 0:00:10.7]} 51... hxg6+ {[%clk 0:00:16.4]} 52. fxg6+
{[%clk 0:00:11.6]} 52... Kf6 {[%clk 0:00:16.3]} 53. g7 {[%clk 0:00:10.8]} 53...
Kf7 {[%clk 0:00:16.7]} 54. Re5 {[%clk 0:00:08.9]} 54... Bb2 {[%clk 0:00:11.5]}
55. Rf5+ {[%clk 0:00:08.3]} 55... Bf6 {[%clk 0:00:11.7]} 56. g8=Q+ {[%clk
0:00:06.6]} 56... Kxg8 {[%clk 0:00:11.6]} 57. Kg6 {[%clk 0:00:07.5]} 57... Rd6
{[%clk 0:00:10.6]} 58. Rc5 {[%clk 0:00:06.2]} 58... Bg7 {[%clk 0:00:06.3]} 59.
Rc8+ {[%clk 0:00:04.8]} 59... Bf8 {[%clk 0:00:06.7]} 60. Rxf8# {[%clk
0:00:05.3]} 1-0

[Event "Early-Titled-Tuesday-Blitz-January-16-2024"]
[Site "Chess.com"]
[Date "2024.01.16"]
[Round "3"]
[White "IngOscarArdila"]
[Black "karinachess1"]
[Result "0-1"]
[WhiteElo "2362"]
[BlackElo "2598"]
[TimeControl "180+1"]
[EndTime "8:30:10 PST"]
[Termination "karinachess1 won by resignation"]

1. d4 {[%clk 0:03:00.2]} 1... Nf6 {[%clk 0:03:00]} 2. c4 {[%clk 0:02:58.4]} 2...
e6 {[%clk 0:03:00.6]} 3. Nc3 {[%clk 0:02:53.6]} 3... d5 {[%clk 0:03:00.9]} 4.
Bg5 {[%clk 0:02:53.1]} 4... Be7 {[%clk 0:03:00.8]} 5. e3 {[%clk 0:02:53.3]} 5...
h6 {[%clk 0:03:01.3]} 6. Bh4 {[%clk 0:02:53.2]} 6... O-O {[%clk 0:03:00.5]} 7.
Nf3 {[%clk 0:02:52.5]} 7... Ne4 {[%clk 0:03:00.8]} 8. Bxe7 {[%clk 0:02:50.7]}
8... Qxe7 {[%clk 0:03:01.7]} 9. Nxe4 {[%clk 0:02:51]} 9... dxe4 {[%clk 0:03:02]}
10. Nd2 {[%clk 0:02:51.6]} 10... f5 {[%clk 0:03:00.8]} 11. Qc2 {[%clk
0:02:49.4]} 11... Nc6 {[%clk 0:02:59.3]} 12. a3 {[%clk 0:02:48.4]} 12... Bd7
{[%clk 0:02:54.9]} 13. Qc3 {[%clk 0:02:48.3]} 13... Qg5 {[%clk 0:02:41.9]} 14.
b4 {[%clk 0:02:46.4]} 14... a5 {[%clk 0:02:41.1]} 15. b5 {[%clk 0:02:46.4]}
15... Ne7 {[%clk 0:02:40.9]} 16. g3 {[%clk 0:02:45]} 16... Qf6 {[%clk
0:02:24.8]} 17. a4 {[%clk 0:02:41.2]} 17... Ng6 {[%clk 0:02:24.4]} 18. h4 {[%clk
0:02:36.9]} 18... e5 {[%clk 0:02:24.6]} 19. Nb3 {[%clk 0:02:30.8]} 19... f4
{[%clk 0:02:18.1]} 20. dxe5 {[%clk 0:02:21.8]} 20... Nxe5 {[%clk 0:02:19]} 21.
O-O-O {[%clk 0:01:53.1]} 21... Bg4 {[%clk 0:02:06.3]} 22. Rd2 {[%clk 0:01:41.6]}
22... fxg3 {[%clk 0:01:43]} 23. fxg3 {[%clk 0:01:37.8]} 23... Nd3+ {[%clk
0:01:27.9]} 24. Kc2 {[%clk 0:01:26.4]} 24... Qf3 {[%clk 0:01:27.8]} 25. Rg1
{[%clk 0:01:17.1]} 25... Qxe3 {[%clk 0:01:27]} 26. Rh1 {[%clk 0:01:10]} 26...
Bf3 {[%clk 0:01:02.8]} 27. Rhh2 {[%clk 0:00:53.9]} 27... Rad8 {[%clk 0:00:39.5]}
28. Bxd3 {[%clk 0:00:52.3]} 28... exd3+ {[%clk 0:00:39.9]} 29. Kb2 {[%clk
0:00:49.9]} 29... Be2 {[%clk 0:00:40]} 30. Nxa5 {[%clk 0:00:39.3]} 30... Qg1
{[%clk 0:00:29.4]} 31. Rhxe2 {[%clk 0:00:23.4]} 31... dxe2 {[%clk 0:00:29]} 32.
Rxe2 {[%clk 0:00:23.5]} 32... Rd7 {[%clk 0:00:23.4]} 33. Qe5 {[%clk 0:00:15.9]}
33... Qb6 {[%clk 0:00:18.7]} 34. Nb3 {[%clk 0:00:14.6]} 34... Rdf7 {[%clk
0:00:08]} 35. c5 {[%clk 0:00:14.3]} 35... Qg6 {[%clk 0:00:06.7]} 36. Ka3 {[%clk
0:00:13.1]} 36... Kh7 {[%clk 0:00:06.6]} 37. h5 {[%clk 0:00:12.6]} 37... Qd3
{[%clk 0:00:05.7]} 38. Qe4+ {[%clk 0:00:10]} 38... Qxe4 {[%clk 0:00:05.8]} 39.
Rxe4 {[%clk 0:00:10.9]} 39... Rf3 {[%clk 0:00:05.6]} 40. g4 {[%clk 0:00:10.8]}
40... Rd3 {[%clk 0:00:04.4]} 41. Kb4 {[%clk 0:00:08.8]} 41... Rff3 {[%clk
0:00:04.7]} 42. Nd4 {[%clk 0:00:08.3]} 42... Rg3 {[%clk 0:00:05]} 43. Nf5 {[%clk
0:00:07.4]} 43... Rg1 {[%clk 0:00:03.5]} 44. Re7 {[%clk 0:00:06.9]} 44... Rxg4+
{[%clk 0:00:03.2]} 45. Ka5 {[%clk 0:00:06.5]} 45... Rd5 {[%clk 0:00:02.7]} 46.
Rxc7 {[%clk 0:00:05.3]} 46... Rxf5 {[%clk 0:00:02.8]} 47. Kb6 {[%clk 0:00:05.2]}
47... Rxa4 {[%clk 0:00:02.4]} 48. Rxb7 {[%clk 0:00:04.9]} 48... Rb4 {[%clk
0:00:03]} 49. Kc6 {[%clk 0:00:04.1]} 49... Rxh5 {[%clk 0:00:03.4]} 50. Rd7
{[%clk 0:00:03.3]} 50... Rg5 {[%clk 0:00:02.4]} 51. b6 {[%clk 0:00:03]} 51... h5
{[%clk 0:00:02.9]} 52. Rd5 {[%clk 0:00:02.9]} 52... Rg6+ {[%clk 0:00:03.1]} 53.
Kc7 {[%clk 0:00:02.5]} 53... Rh6 {[%clk 0:00:03.8]} 54. c6 {[%clk 0:00:02.3]}
54... h4 {[%clk 0:00:03.9]} 55. b7 {[%clk 0:00:02.7]} 55... h3 {[%clk
0:00:04.3]} 56. Rd3 {[%clk 0:00:01]} 56... h2 {[%clk 0:00:04.4]} 57. Rd1 {[%clk
0:00:01.3]} 57... h1=Q {[%clk 0:00:04.9]} 58. Rxh1 {[%clk 0:00:01.4]} 58... Rxh1
{[%clk 0:00:05.8]} 59. b8=Q {[%clk 0:00:01.7]} 59... Rxb8 {[%clk 0:00:06.1]} 60.
Kxb8 {[%clk 0:00:02.6]} 60... Rc1 {[%clk 0:00:06.6]} 61. c7 {[%clk 0:00:03.5]}
61... g5 {[%clk 0:00:07.1]} 62. c8=Q {[%clk 0:00:03.9]} 62... Rxc8+ {[%clk
0:00:07.5]} 63. Kxc8 {[%clk 0:00:04.8]} 63... g4 {[%clk 0:00:08.4]} 0-1

[Event "Early-Titled-Tuesday-Blitz-January-16-2024"]
[Site "Chess.com"]
[Date "2024.01.16"]
[Round "3"]
[White "RobertoJBM"]
[Black "Manukyan_Artak"]
[Result "1-0"]
[WhiteElo "2802"]
[BlackElo "2553"]
[TimeControl "180+1"]
[EndTime "8:30:13 PST"]
[Termination "RobertoJBM won on time"]

1. d4 {[%clk 0:03:00.9]} 1... d5 {[%clk 0:02:59.9]} 2. Nf3 {[%clk 0:02:59]} 2...
Nf6 {[%clk 0:02:59.5]} 3. e3 {[%clk 0:02:57.9]} 3... Bg4 {[%clk 0:02:57.9]} 4.
c4 {[%clk 0:02:57.5]} 4... e6 {[%clk 0:02:57.5]} 5. Qb3 {[%clk 0:02:56.9]} 5...
Bxf3 {[%clk 0:02:52.5]} 6. gxf3 {[%clk 0:02:55.2]} 6... Qc8 {[%clk 0:02:44.4]}
7. cxd5 {[%clk 0:02:53.7]} 7... exd5 {[%clk 0:02:42.2]} 8. Nc3 {[%clk
0:02:53.8]} 8... c6 {[%clk 0:02:42.1]} 9. e4 {[%clk 0:02:50]} 9... Be7 {[%clk
0:02:23.2]} 10. Be3 {[%clk 0:02:46.2]} 10... O-O {[%clk 0:02:22.8]} 11. O-O-O
{[%clk 0:02:45.8]} 11... a5 {[%clk 0:02:20.9]} 12. Kb1 {[%clk 0:02:45.1]} 12...
b5 {[%clk 0:02:20.3]} 13. e5 {[%clk 0:02:30.3]} 13... Ne8 {[%clk 0:02:12.8]} 14.
f4 {[%clk 0:02:27.6]} 14... a4 {[%clk 0:02:07.5]} 15. Qc2 {[%clk 0:02:27.1]}
15... b4 {[%clk 0:02:07.7]} 16. Nxd5 {[%clk 0:02:25.5]} 16... Bd8 {[%clk
0:02:03.8]} 17. Nxb4 {[%clk 0:02:21.2]} 17... a3 {[%clk 0:01:59.3]} 18. b3
{[%clk 0:02:20.3]} 18... Ba5 {[%clk 0:01:55.3]} 19. Nd5 {[%clk 0:02:14.1]} 19...
Qe6 {[%clk 0:01:42]} 20. Nc3 {[%clk 0:02:12.6]} 20... Bxc3 {[%clk 0:01:36.5]}
21. Qxc3 {[%clk 0:02:04.8]} 21... Nc7 {[%clk 0:01:36.2]} 22. Ka1 {[%clk
0:01:58.2]} 22... Nd5 {[%clk 0:01:30.8]} 23. Qc2 {[%clk 0:01:53.7]} 23... Na6
{[%clk 0:01:27]} 24. Bxa6 {[%clk 0:01:35.8]} 24... Rxa6 {[%clk 0:01:20.3]} 25.
f5 {[%clk 0:01:32.9]} 25... Qc8 {[%clk 0:01:19.6]} 26. Rc1 {[%clk 0:01:30.4]}
26... f6 {[%clk 0:01:10.2]} 27. e6 {[%clk 0:01:23]} 27... Ne7 {[%clk 0:01:09.9]}
28. d5 {[%clk 0:01:06.1]} 28... Nxd5 {[%clk 0:00:58.8]} 29. Rhd1 {[%clk
0:01:01.1]} 29... Qb8 {[%clk 0:00:54]} 30. Qe4 {[%clk 0:00:47.6]} 30... Qxh2
{[%clk 0:00:39.6]} 31. e7 {[%clk 0:00:35.7]} 31... Re8 {[%clk 0:00:35.7]} 32.
Rxc6 {[%clk 0:00:21.3]} 32... Rxc6 {[%clk 0:00:34.8]} 33. Qxd5+ {[%clk
0:00:20.8]} 33... Kh8 {[%clk 0:00:34.5]} 34. Qxc6 {[%clk 0:00:19.3]} 34... Qe5+
{[%clk 0:00:30.4]} 35. Bd4 {[%clk 0:00:15.4]} 35... Qxe7 {[%clk 0:00:20.7]} 36.
Bc3 {[%clk 0:00:15.3]} 36... h5 {[%clk 0:00:17.8]} 37. Qf3 {[%clk 0:00:13.1]}
37... Qf7 {[%clk 0:00:16]} 38. Rh1 {[%clk 0:00:12.5]} 38... Kg8 {[%clk
0:00:12.9]} 39. Qxh5 {[%clk 0:00:11.3]} 39... Qxh5 {[%clk 0:00:11.6]} 40. Rxh5
{[%clk 0:00:12.2]} 40... Re2 {[%clk 0:00:11.7]} 41. Rh1 {[%clk 0:00:09.5]} 41...
Rxf2 {[%clk 0:00:10.7]} 42. Bb4 {[%clk 0:00:10]} 42... Rxf5 {[%clk 0:00:10.8]}
43. Bxa3 {[%clk 0:00:10.5]} 43... g5 {[%clk 0:00:11.7]} 44. Bd6 {[%clk
0:00:09.9]} 44... Rd5 {[%clk 0:00:10.6]} 45. Bb4 {[%clk 0:00:08.8]} 45... f5
{[%clk 0:00:10.9]} 46. Rh2 {[%clk 0:00:09]} 46... g4 {[%clk 0:00:11]} 47. Kb2
{[%clk 0:00:09.6]} 47... Kf7 {[%clk 0:00:10.7]} 48. Be1 {[%clk 0:00:09.2]} 48...
f4 {[%clk 0:00:10.8]} 49. Rg2 {[%clk 0:00:08.7]} 49... Rg5 {[%clk 0:00:07.5]}
50. Kc3 {[%clk 0:00:08.8]} 50... Ke6 {[%clk 0:00:05.8]} 51. Kd4 {[%clk
0:00:09.1]} 51... Kf5 {[%clk 0:00:06.1]} 52. Bh4 {[%clk 0:00:08.6]} 52... Rg8
{[%clk 0:00:05.5]} 53. Bf2 {[%clk 0:00:09.1]} 53... g3 {[%clk 0:00:05.5]} 54.
Bxg3 {[%clk 0:00:07.6]} 54... fxg3 {[%clk 0:00:05.3]} 55. Ke3 {[%clk 0:00:07.7]}
55... Kg4 {[%clk 0:00:05.5]} 56. b4 {[%clk 0:00:07.9]} 56... Re8+ {[%clk
0:00:03]} 57. Kd3 {[%clk 0:00:07.1]} 57... Kf3 {[%clk 0:00:03.6]} 58. Rg1 {[%clk
0:00:07.6]} 58... g2 {[%clk 0:00:02.9]} 59. b5 {[%clk 0:00:07.1]} 59... Re2
{[%clk 0:00:01.1]} 60. a4 {[%clk 0:00:06.6]} 1-0

[Event "Early-Titled-Tuesday-Blitz-January-16-2024"]
[Site "Chess.com"]
[Date "2024.01.16"]
[Round "3"]
[White "MikaelyanArman"]
[Black "Superfelix"]
[Result "1-0"]
[WhiteElo "2845"]
[BlackElo "2518"]
[TimeControl "180+1"]
[EndTime "8:30:13 PST"]
[Termination "MikaelyanArman won by checkmate"]

1. d4 {[%clk 0:03:00.9]} 1... g6 {[%clk 0:02:56.9]} 2. e4 {[%clk 0:03:00.5]}
2... c6 {[%clk 0:02:55.7]} 3. Nc3 {[%clk 0:02:57.1]} 3... d5 {[%clk 0:02:56.2]}
4. Nf3 {[%clk 0:02:56.5]} 4... dxe4 {[%clk 0:02:56.4]} 5. Nxe4 {[%clk
0:02:57.4]} 5... Nf6 {[%clk 0:02:56.7]} 6. Nxf6+ {[%clk 0:02:49.2]} 6... exf6
{[%clk 0:02:57.6]} 7. Bc4 {[%clk 0:02:47.4]} 7... Bg7 {[%clk 0:02:58]} 8. Qe2+
{[%clk 0:02:44.6]} 8... Qe7 {[%clk 0:02:57.4]} 9. Qxe7+ {[%clk 0:02:43.3]} 9...
Kxe7 {[%clk 0:02:58.3]} 10. O-O {[%clk 0:02:42.9]} 10... Be6 {[%clk 0:02:57.3]}
11. Re1 {[%clk 0:02:42.2]} 11... Nd7 {[%clk 0:02:54.5]} 12. b3 {[%clk
0:02:42.4]} 12... Rhe8 {[%clk 0:02:51.2]} 13. Ba3+ {[%clk 0:02:29.9]} 13... Kd8
{[%clk 0:02:50.8]} 14. Bxe6 {[%clk 0:02:26.7]} 14... fxe6 {[%clk 0:02:46.1]} 15.
c4 {[%clk 0:02:21]} 15... Bf8 {[%clk 0:02:44.8]} 16. Bxf8 {[%clk 0:02:03]} 16...
Nxf8 {[%clk 0:02:45.7]} 17. Re4 {[%clk 0:02:02.5]} 17... Ke7 {[%clk 0:02:37.1]}
18. Rae1 {[%clk 0:02:01.9]} 18... Rad8 {[%clk 0:02:32]} 19. g4 {[%clk
0:02:01.3]} 19... g5 {[%clk 0:02:24.5]} 20. h4 {[%clk 0:01:59]} 20... h6 {[%clk
0:02:22.4]} 21. h5 {[%clk 0:01:59.4]} 21... Kf7 {[%clk 0:02:19.3]} 22. Kg2
{[%clk 0:01:58.7]} 22... Rd7 {[%clk 0:02:15.4]} 23. b4 {[%clk 0:01:54.4]} 23...
Red8 {[%clk 0:02:15.4]} 24. a4 {[%clk 0:01:53.5]} 24... Rd6 {[%clk 0:02:11.2]}
25. b5 {[%clk 0:01:50.6]} 25... cxb5 {[%clk 0:02:08.1]} 26. axb5 {[%clk
0:01:51.5]} 26... Rc8 {[%clk 0:02:07.1]} 27. c5 {[%clk 0:01:50]} 27... Rd5
{[%clk 0:02:06.4]} 28. Ra1 {[%clk 0:01:49.7]} 28... Ra8 {[%clk 0:01:59.8]} 29.
b6 {[%clk 0:01:48.6]} 29... a5 {[%clk 0:01:43.4]} 30. Re2 {[%clk 0:01:47.8]}
30... Nd7 {[%clk 0:01:34.3]} 31. Rae1 {[%clk 0:01:03.3]} 31... Re8 {[%clk
0:01:14.4]} 32. Ra2 {[%clk 0:01:01.9]} 32... Ra8 {[%clk 0:01:12.4]} 33. Rc1
{[%clk 0:00:46.4]} 33... Nb8 {[%clk 0:01:09.7]} 34. Ra4 {[%clk 0:00:38.2]} 34...
Nc6 {[%clk 0:01:09.7]} 35. Kf1 {[%clk 0:00:32]} 35... Rad8 {[%clk 0:01:06.6]}
36. Ke2 {[%clk 0:00:28.6]} 36... R8d7 {[%clk 0:00:45.1]} 37. Ke3 {[%clk
0:00:27.9]} 37... f5 {[%clk 0:00:40.3]} 38. Rg1 {[%clk 0:00:21]} 38... Kf6
{[%clk 0:00:32.5]} 39. Rg2 {[%clk 0:00:08.1]} 39... Rd8 {[%clk 0:00:28]} 40. Rg1
{[%clk 0:00:08.2]} 40... Re8 {[%clk 0:00:27.9]} 41. Ke2 {[%clk 0:00:03.2]} 41...
e5 {[%clk 0:00:26.7]} 42. dxe5+ {[%clk 0:00:03.3]} 42... Nxe5 {[%clk 0:00:26.7]}
43. Nxe5 {[%clk 0:00:02.5]} 43... Rexe5+ {[%clk 0:00:27.6]} 44. Kf3 {[%clk
0:00:02.7]} 44... Rxc5 {[%clk 0:00:26.4]} 45. Rd1 {[%clk 0:00:02.8]} 45... Rc3+
{[%clk 0:00:26.4]} 46. Kg2 {[%clk 0:00:03.1]} 46... Rc6 {[%clk 0:00:08.3]} 47.
Rd7 {[%clk 0:00:02.4]} 47... Rxb6 {[%clk 0:00:08.3]} 48. Rh7 {[%clk 0:00:03.1]}
48... Rb2 {[%clk 0:00:05.8]} 49. Rxh6+ {[%clk 0:00:03.3]} 49... Kf7 {[%clk
0:00:06.3]} 50. Rh7+ {[%clk 0:00:03.5]} 50... Kg8 {[%clk 0:00:05.8]} 51. Rc7
{[%clk 0:00:03.7]} 51... Ree2 {[%clk 0:00:06.6]} 52. Rd4 {[%clk 0:00:02.8]}
52... Rxf2+ {[%clk 0:00:07]} 53. Kg1 {[%clk 0:00:03.3]} 53... Rg2+ {[%clk
0:00:07.1]} 54. Kf1 {[%clk 0:00:03.8]} 54... Rgf2+ {[%clk 0:00:07.7]} 55. Ke1
{[%clk 0:00:04.4]} 55... Rfe2+ {[%clk 0:00:07.8]} 56. Kd1 {[%clk 0:00:04.7]}
56... Re8 {[%clk 0:00:08.5]} 57. Rdd7 {[%clk 0:00:04.2]} 57... fxg4 {[%clk
0:00:08.3]} 58. Rg7+ {[%clk 0:00:04.3]} 58... Kh8 {[%clk 0:00:08.8]} 59. Rh7+
{[%clk 0:00:03.4]} 59... Kg8 {[%clk 0:00:09.5]} 60. Rcg7+ {[%clk 0:00:03.2]}
60... Kf8 {[%clk 0:00:09.9]} 61. h6 {[%clk 0:00:04]} 61... Rd8+ {[%clk
0:00:04.1]} 62. Kc1 {[%clk 0:00:04.4]} 62... Rh2 {[%clk 0:00:03.7]} 63. Rh8#
{[%clk 0:00:04.5]} 1-0

[Event "Early-Titled-Tuesday-Blitz-January-16-2024"]
[Site "Chess.com"]
[Date "2024.01.16"]
[Round "3"]
[White "alvarorodriguezavila"]
[Black "Nouali_Mohamed"]
[Result "0-1"]
[WhiteElo "2323"]
[BlackElo "2583"]
[TimeControl "180+1"]
[EndTime "8:30:13 PST"]
[Termination "Nouali_Mohamed won by checkmate"]

1. e4 {[%clk 0:03:00.9]} 1... c5 {[%clk 0:02:59.6]} 2. d4 {[%clk 0:03:01]} 2...
cxd4 {[%clk 0:02:59.8]} 3. c3 {[%clk 0:03:01.6]} 3... e5 {[%clk 0:03:00.3]} 4.
Nf3 {[%clk 0:03:00.4]} 4... Nc6 {[%clk 0:03:00.7]} 5. Bc4 {[%clk 0:03:00.9]}
5... Nf6 {[%clk 0:03:00.6]} 6. O-O {[%clk 0:03:01.4]} 6... Nxe4 {[%clk
0:03:00.2]} 7. cxd4 {[%clk 0:02:57.4]} 7... d5 {[%clk 0:02:58.5]} 8. Bb5 {[%clk
0:02:55.4]} 8... exd4 {[%clk 0:02:58.1]} 9. Qxd4 {[%clk 0:02:42.6]} 9... a6
{[%clk 0:02:29.8]} 10. Bxc6+ {[%clk 0:02:42.7]} 10... bxc6 {[%clk 0:02:30.6]}
11. Nc3 {[%clk 0:02:42.2]} 11... Qf6 {[%clk 0:01:53]} 12. Nxe4 {[%clk
0:01:58.8]} 12... Qxd4 {[%clk 0:01:50.9]} 13. Nxd4 {[%clk 0:01:59.7]} 13... dxe4
{[%clk 0:01:51.8]} 14. Re1 {[%clk 0:02:00.3]} 14... f5 {[%clk 0:01:45.8]} 15.
Bf4 {[%clk 0:01:43.4]} 15... c5 {[%clk 0:01:29.9]} 16. Nc6 {[%clk 0:01:28.6]}
16... Bd7 {[%clk 0:00:38.9]} 17. Ne5 {[%clk 0:01:09.8]} 17... Bd6 {[%clk
0:00:38.9]} 18. Rad1 {[%clk 0:01:09.9]} 18... Bxe5 {[%clk 0:00:34.3]} 19. Bxe5
{[%clk 0:01:10.4]} 19... Be6 {[%clk 0:00:15.2]} 20. Bxg7 {[%clk 0:00:49.8]}
20... Rg8 {[%clk 0:00:15]} 21. Bc3 {[%clk 0:00:50.4]} 21... Kf7 {[%clk
0:00:13.1]} 22. a3 {[%clk 0:00:42.8]} 22... Rad8 {[%clk 0:00:09.1]} 23. h3
{[%clk 0:00:41.3]} 23... h5 {[%clk 0:00:07.9]} 24. Kh2 {[%clk 0:00:41.6]} 24...
h4 {[%clk 0:00:06.9]} 25. Ba5 {[%clk 0:00:27.5]} 25... Rd3 {[%clk 0:00:05.7]}
26. Rd2 {[%clk 0:00:13.4]} 26... c4 {[%clk 0:00:05.8]} 27. Bc3 {[%clk
0:00:12.5]} 27... Bd5 {[%clk 0:00:05.8]} 28. Rde2 {[%clk 0:00:09.7]} 28... f4
{[%clk 0:00:05.7]} 29. Rxe4 {[%clk 0:00:05.6]} 29... Bxe4 {[%clk 0:00:06.6]} 30.
Rxe4 {[%clk 0:00:06.5]} 30... f3 {[%clk 0:00:06.6]} 31. Rf4+ {[%clk 0:00:04.1]}
31... Ke6 {[%clk 0:00:06.8]} 32. gxf3 {[%clk 0:00:04]} 32... Rd1 {[%clk
0:00:06]} 33. Rxc4 {[%clk 0:00:02.6]} 33... Rf1 {[%clk 0:00:05.3]} 34. Rg4
{[%clk 0:00:03.2]} 34... Rxf2+ {[%clk 0:00:05.1]} 35. Kg1 {[%clk 0:00:03.4]}
35... Rxg4+ {[%clk 0:00:05]} 36. Kxf2 {[%clk 0:00:02.6]} 36... Rg3 {[%clk
0:00:04.6]} 37. b4 {[%clk 0:00:02]} 37... Rxh3 {[%clk 0:00:04.1]} 38. a4 {[%clk
0:00:02.7]} 38... Rg3 {[%clk 0:00:04]} 39. b5 {[%clk 0:00:03.1]} 39... axb5
{[%clk 0:00:04.9]} 40. axb5 {[%clk 0:00:03.6]} 40... Rg8 {[%clk 0:00:04.8]} 41.
b6 {[%clk 0:00:03.6]} 41... Rb8 {[%clk 0:00:04.9]} 42. Kg2 {[%clk 0:00:03.1]}
42... Rb7 {[%clk 0:00:05.8]} 43. Kh3 {[%clk 0:00:03.4]} 43... Rxb6 {[%clk
0:00:05.9]} 44. Kxh4 {[%clk 0:00:04]} 44... Kf5 {[%clk 0:00:06.5]} 45. Kg3
{[%clk 0:00:04.4]} 45... Rb3 {[%clk 0:00:07.4]} 46. Bd2 {[%clk 0:00:04.5]} 46...
Rd3 {[%clk 0:00:08.3]} 47. Bh6 {[%clk 0:00:04.4]} 47... Rd5 {[%clk 0:00:09.2]}
48. Be3 {[%clk 0:00:04.6]} 48... Rd1 {[%clk 0:00:10.1]} 49. Bf2 {[%clk
0:00:04.4]} 49... Rd7 {[%clk 0:00:11]} 50. Be3 {[%clk 0:00:04.7]} 50... Rh7
{[%clk 0:00:11.9]} 51. Bd2 {[%clk 0:00:04.1]} 51... Rg7+ {[%clk 0:00:12.3]} 52.
Kf2 {[%clk 0:00:04.4]} 52... Rd7 {[%clk 0:00:13.2]} 53. Be3 {[%clk 0:00:05]}
53... Ke5 {[%clk 0:00:13.4]} 54. Bh6 {[%clk 0:00:05.3]} 54... Kd4 {[%clk
0:00:13.2]} 55. Be3+ {[%clk 0:00:05.7]} 55... Kd3 {[%clk 0:00:13.5]} 56. Bf4
{[%clk 0:00:06.1]} 56... Rf7 {[%clk 0:00:13.9]} 57. Kg3 {[%clk 0:00:06.7]} 57...
Ke2 {[%clk 0:00:13.9]} 58. Kg4 {[%clk 0:00:05.8]} 58... Kf2 {[%clk 0:00:13.7]}
59. Bg3+ {[%clk 0:00:05.1]} 59... Ke3 {[%clk 0:00:14.2]} 60. f4 {[%clk
0:00:02.8]} 60... Rg7+ {[%clk 0:00:14.6]} 61. Kh3 {[%clk 0:00:02.6]} 61... Kf3
{[%clk 0:00:15]} 62. Bh2 {[%clk 0:00:03.2]} 62... Rh7# {[%clk 0:00:15]} 0-1